{"text_format":"1","workbook":"xlsx","n_sheets":1,"sheets":["Powers_&_Roots"],"not_rendered":{"charts":0,"images":0,"macros":1,"external_links":0,"defined_names":3,"comments":0,"pivot_tables":0},"unopened":[],"bounds":{"document_bytes":16777216,"sheet_cells":100000,"rows_first":2000,"rows_last":500,"rows_between":2000,"halvings":0,"cell_chars":16384,"cell_head_chars":4096},"cells_cut":0,"cells_raw":0,"read":"whole","date_system":"1900"}

{"sheet":"Powers_&_Roots","index":0,"n_rows":42,"n_cols":44,"rows_kept":42,"cut":false,"hidden":false,"merged":[[17,19,17,21],[17,23,17,26],[35,23,35,26],[23,19,23,21],[23,23,23,26],[29,19,29,21],[29,23,29,26],[1,1,3,32],[5,19,5,21],[5,23,5,26],[11,19,11,21],[11,23,11,26]]}
[]
[null,"Level 3 Maths - Powers & Roots                                                                                                                                                                   Created by Mr.Lafferty@mathsrevision.com  "]
[]
[]
[null,null,null,null,null,null,null,null,null,null,null,null,null,null,null,null,null,null,null,null,null,null,null,null,null,null,null,null,null,null,null,null,null,null,null,null,null,null,{"$f":"ROUND(RAND()*(3-1)+1,0)","v":3},0,{"$f":"ROUND(RAND()*(100-0)+0,0)","v":79},"°",0]
[null,{"$f":"\"Q1.   Calculate    \"&AO9&AP9&\".\"","v":"Q1.   Calculate    5³."},null,null,null,null,null,null,null,null,null,null,null,null,null,null,null,null,null,"answer",null,null,null,null,null,null,null,null,null,null,null,null,null,null,null,{"$f":"POWER(AO9,AQ9)","v":125},null,null,null,1,{"$f":"ROUND(RAND()*(100-0)+0,0)","v":14},"¹",1]
[null,null,null,null,null,null,null,null,null,null,null,null,null,null,null,null,null,null,null,null,null,null,null,null,null,null,null,null,null,null,null,null,null,null,null,null,null,null,null,2,{"$f":"ROUND(RAND()*(20-0)+0,0)","v":4},"²",2]
[null,null,null,null,null,null,null,null,null,null,null,null,null,null,null,null,null,null,null,null,null,null,null,null,null,null,null,null,null,null,null,null,null,null,null,null,null,null,null,3,{"$f":"ROUND(RAND()*(10-0)+0,0)","v":5},"³",3]
[null,null,null,null,null,null,null,null,null,null,null,null,null,null,null,null,null,null,null,null,null,null,null,null,null,null,null,null,null,null,null,null,null,null,null,null,null,null,null,null,{"$f":"LOOKUP($AM$5,$AN$5:$AN$8,AO5:AO8)","v":5},{"$f":"LOOKUP($AM$5,$AN$5:$AN$8,AP5:AP8)","v":"³"},{"$f":"LOOKUP($AM$5,$AN$5:$AN$8,AQ5:AQ8)","v":3}]
[]
[null,null,null,null,null,null,null,null,null,null,null,null,null,null,null,null,null,null,null,null,null,null,null,null,null,null,null,null,null,null,null,null,null,null,null,null,null,null,{"$f":"ROUND(RAND()*(3-1)+1,0)","v":3},0,{"$f":"ROUND(RAND()*(100-0)+0,0)","v":24},"°",2]
[null,{"$f":"\"Q2.   Calculate    \"&AQ16&AO16&\".\"","v":"Q2.   Calculate    ³√1."},null,null,null,null,null,null,null,null,null,null,null,null,null,null,null,null,null,"answer",null,null,null,null,null,null,null,null,null,null,null,null,null,null,null,null,null,null,null,1,{"$f":"ROUND(RAND()*(100-0)+0,0)","v":57},"¹",2,"√"]
[null,null,null,null,null,null,null,null,null,null,null,null,null,null,null,null,null,null,null,null,null,null,null,null,null,null,null,null,null,null,null,null,null,null,null,{"$f":"POWER(AO16,(1/AP16))","v":1},null,null,null,2,{"$f":"ROUND(RAND()*(20-0)+0,0)","v":4},"²",2,"√"]
[null,null,null,null,null,null,null,null,null,null,null,null,null,null,null,null,null,null,null,null,null,null,null,null,null,null,null,null,null,null,null,null,null,null,null,null,null,null,null,3,{"$f":"ROUND(RAND()*(10-0)+0,0)","v":1},"³",3,"√"]
[null,null,null,null,null,null,null,null,null,null,null,null,null,null,null,null,null,null,null,null,null,null,null,null,null,null,null,null,null,null,null,null,null,null,null,null,null,null,null,null,{"$f":"LOOKUP($AM$11,$AN$11:$AN$14,AO11:AO14)","v":1},{"$f":"LOOKUP($AM$11,$AN$11:$AN$14,AP11:AP14)","v":"³"},3,"√"]
[null,null,null,null,null,null,null,null,null,null,null,null,null,null,null,null,null,null,null,null,null,null,null,null,null,null,null,null,null,null,null,null,null,null,null,null,null,null,null,null,{"$f":"POWER(AO15,AQ15)","v":1},{"$f":"IF(AQ15=2,2,3)","v":3},{"$f":"IF(AP16=2,AR15,CONCATENATE(AP15,AR15))","v":"³√"}]
[]
[null,{"$f":"\"Q3.   Calculate    \"&AO22&AP22&\".\"","v":"Q3.   Calculate    57¹."},null,null,null,null,null,null,null,null,null,null,null,null,null,null,null,null,null,"answer",null,null,null,null,null,null,null,null,null,null,null,null,null,null,null,null,null,null,{"$f":"ROUND(RAND()*(3-1)+1,0)","v":1},0,{"$f":"ROUND(RAND()*(100-0)+0,0)","v":78},"°",0]
[null,null,null,null,null,null,null,null,null,null,null,null,null,null,null,null,null,null,null,null,null,null,null,null,null,null,null,null,null,null,null,null,null,null,null,{"$f":"POWER(AO22,AQ22)","v":57},null,null,null,1,{"$f":"ROUND(RAND()*(100-0)+0,0)","v":57},"¹",1]
[null,null,null,null,null,null,null,null,null,null,null,null,null,null,null,null,null,null,null,null,null,null,null,null,null,null,null,null,null,null,null,null,null,null,null,null,null,null,null,2,{"$f":"ROUND(RAND()*(9-0)+0,0)*10","v":0},"²",2]
[null,null,null,null,null,null,null,null,null,null,null,null,null,null,null,null,null,null,null,null,null,null,null,null,null,null,null,null,null,null,null,null,null,null,null,null,null,null,null,3,70,"³",3]
[null,null,null,null,null,null,null,null,null,null,null,null,null,null,null,null,null,null,null,null,null,null,null,null,null,null,null,null,null,null,null,null,null,null,null,null,null,null,null,null,{"$f":"LOOKUP($AM$18,$AN$18:$AN$21,AO18:AO21)","v":57},{"$f":"LOOKUP($AM$18,$AN$18:$AN$21,AP18:AP21)","v":"¹"},1]
[]
[null,{"$f":"\"Q4.   Calculate    \"&AQ29&AO29&\".\"","v":"Q4.   Calculate    √100."},null,null,null,null,null,null,null,null,null,null,null,null,null,null,null,null,null,"answer",null,null,null,null,null,null,null,null,null,null,null,null,null,null,null,null,null,null,{"$f":"ROUND(RAND()*(3-1)+1,0)","v":1},0,{"$f":"ROUND(RAND()*(10-0)+0,0)","v":2},"°",2]
[null,null,null,null,null,null,null,null,null,null,null,null,null,null,null,null,null,null,null,null,null,null,null,null,null,null,null,null,null,null,null,null,null,null,null,{"$f":"POWER(AO29,(1/AP29))","v":10},null,null,null,1,{"$f":"ROUND(RAND()*(10-0)+0,0)","v":10},"¹",2,"√"]
[null,null,null,null,null,null,null,null,null,null,null,null,null,null,null,null,null,null,null,null,null,null,null,null,null,null,null,null,null,null,null,null,null,null,null,null,null,null,null,2,{"$f":"ROUND(RAND()*(10-0)+0,0)","v":8},"²",2,"√"]
[null,null,null,null,null,null,null,null,null,null,null,null,null,null,null,null,null,null,null,null,null,null,null,null,null,null,null,null,null,null,null,null,null,null,null,null,null,null,null,3,{"$f":"ROUND(RAND()*(10-0)+0,0)","v":1},"³",3,"√"]
[null,null,null,null,null,null,null,null,null,null,null,null,null,null,null,null,null,null,null,null,null,null,null,null,null,null,null,null,null,null,null,null,null,null,null,null,null,null,null,null,{"$f":"LOOKUP($AM$24,$AN$24:$AN$27,AO24:AO27)","v":10},{"$f":"LOOKUP($AM$24,$AN$24:$AN$27,AP24:AP27)","v":"¹"},2,"√"]
[null,null,null,null,null,null,null,null,null,null,null,null,null,null,null,null,null,null,null,null,null,null,null,null,null,null,null,null,null,null,null,null,null,null,null,null,null,null,null,null,{"$f":"POWER(AO28,AQ28)","v":100},{"$f":"IF(AQ28=2,2,3)","v":2},{"$f":"IF(AP29=2,AR28,CONCATENATE(AP28,AR28))","v":"√"}]
[null,{"$f":"\"Q5.   Calculate    \"&AO36&AP35&\".\"","v":"Q5.   Calculate    (-6)³."},null,null,null,null,null,null,null,null,null,null,null,null,null,null,null,null,null,"answer"]
[null,null,null,null,null,null,null,null,null,null,null,null,null,null,null,null,null,null,null,null,null,null,null,null,null,null,null,null,null,null,null,null,null,null,null,{"$f":"POWER(AO35,AQ35)","v":-216},null,null,{"$f":"ROUND(RAND()*(3-1)+1,0)","v":1},0,{"$f":"ROUND(RAND()*((20-(-20)))+(-20),0)","v":-16},"²",2,{"$f":"IF(AO31<0,CONCATENATE(\"(\",AO31,\")\"),AO31)","v":"(-16)"}]
[null,null,null,null,null,null,null,null,null,null,null,null,null,null,null,null,null,null,null,null,null,null,null,null,null,null,null,null,null,null,null,null,null,null,null,null,null,null,null,1,{"$f":"ROUND(RAND()*((10-(-10)))+(-10),0)","v":-6},"³",3,{"$f":"IF(AO32<0,CONCATENATE(\"(\",AO32,\")\"),AO32)","v":"(-6)"}]
[null,null,null,null,null,null,null,null,null,null,null,null,null,null,null,null,null,null,null,null,null,null,null,null,null,null,null,null,null,null,null,null,null,null,null,null,null,null,null,2,{"$f":"ROUND(RAND()*((4-(-4)))+(-4),0)","v":-3},"⁴",4,"(-3)"]
[null,null,null,null,null,null,null,null,null,null,null,null,null,null,null,null,null,null,null,null,null,null,null,null,null,null,null,null,null,null,null,null,null,null,null,null,null,null,null,3,{"$f":"ROUND(RAND()*((4-(-4)))+(-4),0)","v":1},"⁵",5,1]
[null,null,null,null,null,null,null,null,null,null,null,null,null,null,null,null,null,null,null,null,null,null,null,null,null,null,null,null,null,null,null,null,null,null,null,null,null,null,null,null,{"$f":"LOOKUP($AM$31,$AN$31:$AN$34,AO31:AO34)","v":-6},{"$f":"LOOKUP($AM$31,$AN$31:$AN$34,AP31:AP34)","v":"³"},3,"(-6)"]
[null,{"$f":"\"Q6.   Calculate    \"&AO42&AP41&\".\"","v":"Q6.   Calculate    (-1)⁵."},null,null,null,null,null,null,null,null,null,null,null,null,null,null,null,null,null,"answer",null,null,null,null,null,null,null,null,null,null,null,null,null,null,null,{"$f":"POWER(AO41,AQ41)","v":-1},null,null,null,null,{"$f":"IF(AO35<0,AR35,AO35)","v":"(-6)"}]
[null,null,null,null,null,null,null,null,null,null,null,null,null,null,null,null,null,null,null,null,null,null,null,null,null,null,null,null,null,null,null,null,null,null,null,null,null,null,{"$f":"ROUND(RAND()*(3-1)+1,0)","v":3},0,{"$f":"ROUND(RAND()*((20-(-20)))+(-20),0)","v":10},"²",2,{"$f":"IF(AO37<0,CONCATENATE(\"(\",AO37,\")\"),AO37)","v":10}]
[null,null,null,null,null,null,null,null,null,null,null,null,null,null,null,null,null,null,null,null,null,null,null,null,null,null,null,null,null,null,null,null,null,null,null,null,null,null,null,1,{"$f":"ROUND(RAND()*((10-(-10)))+(-10),0)","v":-8},"³",3,{"$f":"IF(AO38<0,CONCATENATE(\"(\",AO38,\")\"),AO38)","v":"(-8)"}]
[null,null,null,null,null,null,null,null,null,null,null,null,null,null,null,null,null,null,null,null,null,null,null,null,null,null,null,null,null,null,null,null,null,null,null,null,null,null,null,2,{"$f":"ROUND(RAND()*((4-(-4)))+(-4),0)","v":0},"⁴",4,0]
[null,null,null,null,null,null,null,null,null,null,null,null,null,null,null,null,null,null,null,null,null,null,null,null,null,null,null,null,null,null,null,null,null,null,null,null,null,null,null,3,{"$f":"ROUND(RAND()*((4-(-4)))+(-4),0)","v":-1},"⁵",5,"(-1)"]
[null,null,null,null,null,null,null,null,null,null,null,null,null,null,null,null,null,null,null,null,null,null,null,null,null,null,null,null,null,null,null,null,null,null,null,null,null,null,null,null,{"$f":"LOOKUP($AM$37,$AN$37:$AN$40,AO37:AO40)","v":-1},{"$f":"LOOKUP($AM$37,$AN$37:$AN$40,AP37:AP40)","v":"⁵"},5,"(-1)"]
[null,null,null,null,null,null,null,null,null,null,null,null,null,null,null,null,null,null,null,null,null,null,null,null,null,null,null,null,null,null,null,null,null,null,null,null,null,null,null,null,{"$f":"IF(AO41<0,AR41,AO41)","v":"(-1)"}]